bitfinex/quotes_ETHUSD_20250908
["timestamp","ask_amount","ask_price","bid_price","bid_amount"]
[1757329926663,93.228,4323.1,4323.0,10.27570842]
[1757329926858,94.458,4323.1,4323.0,10.27570842]
[1757329927947,94.458,4323.1,4323.0,9.97620842]
[1757329928330,95.688,4323.1,4323.0,9.97620842]
[1757329929810,96.918,4323.1,4323.0,11.22300842]
[1757329930011,96.918,4323.1,4323.0,11.66380842]
[1757329930213,96.918,4323.1,4323.0,11.33820842]
[1757329930558,96.918,4323.1,4323.0,12.03274531]
[1757329930858,96.918,4323.1,4323.0,11.08544531]
[1757329931231,98.148,4323.1,4323.0,12.47354531]
[1757329933359,99.378,4323.1,4323.0,12.47354531]
[1757329934517,100.608,4323.1,4323.0,12.47354531]
[1757329935959,101.838,4323.1,4323.0,12.47354531]
[1757329937962,103.068,4323.1,4323.0,12.03274531]
[1757329938162,103.068,4323.1,4323.0,11.08544531]
[1757329939259,104.298,4323.1,4323.0,11.08544531]
[1757329939767,104.588,4323.1,4323.0,6.00974531]
[1757329939942,104.588,4323.1,4323.0,9.87874531]
[1757329940141,104.298,4323.1,4323.0,9.87874531]
[1757329940358,104.298,4323.1,4323.0,10.97024531]
[1757329940553,105.528,4323.1,4323.0,10.97024531]
[1757329942480,106.758,4323.1,4323.0,12.35834531]
[1757329944183,107.988,4323.1,4323.0,12.35834531]
[1757329944384,107.988,4323.1,4323.0,10.97024531]
[1757329944881,107.988,4323.1,4323.0,11.89224531]
[1757329946384,109.218,4323.1,4323.0,10.97024531]
[1757329946600,109.218,4323.1,4323.0,10.67074531]
[1757329946799,109.218,4323.1,4323.0,10.98554531]
[1757329947447,109.218,4323.1,4323.0,10.67074531]
[1757329947848,110.448,4323.1,4323.0,10.67074531]
[1757329948430,110.448,4323.1,4323.0,7.67074531]
[1757329948700,111.1926,4323.1,4323.0,10.66974531]
[1757329949007,112.1927,4323.1,4323.0,10.66974531]
[1757329949168,113.4227,4323.1,4323.0,10.66974531]
[1757329949369,112.4226,4323.1,4323.0,10.66974531]
[1757329949782,112.4226,4323.1,4323.0,10.78494531]
[1757329950099,113.4227,4323.1,4323.0,6.91694531]
[1757329950263,113.4227,4323.1,4323.0,10.78494531]
[1757329950466,113.4227,4323.1,4323.0,0.81173689]
[1757329950720,116.92060797,4323.1,4323.0,3.9852]
[1757329950861,116.92060797,4323.1,4323.0,0.1172]
[1757329951062,116.92060797,4323.1,4323.0,3.9852]
[1757329951463,116.92060797,4323.1,4323.0,4.7772]
[1757329951666,116.92060797,4323.1,4323.0,3.9852]
[1757329951915,116.91980797,4323.1,4323.0,4.7772]
[1757329952265,118.14980797,4323.1,4323.0,4.7772]
[1757329953696,119.37980797,4323.1,4323.0,4.7772]
[1757329955066,120.60980797,4323.1,4323.0,4.7772]
[1757329956405,121.83980797,4323.1,4323.0,4.7772]
[1757329957673,123.06980797,4323.1,4323.0,4.7772]
[1757329958873,119.0572,4323.1,4323.0,4.7772]
[1757329959068,120.2872,4323.1,4323.0,6.97520842]
[1757329959490,120.576,4323.1,4323.0,6.97520842]
[1757329960006,121.0318,4323.1,4323.0,6.97520842]
[1757329960402,122.2618,4323.1,4323.0,6.97520842]
[1757329960601,121.806,4323.1,4323.0,6.97520842]
[1757329960788,122.2618,4323.1,4323.0,6.97520842]
[1757329961115,125.52980797,4323.1,4323.0,3.87]
[1757329961785,126.75980797,4323.1,4323.0,3.872]
[1757329962171,126.75980797,4323.1,4323.0,4.664]
[1757329963112,126.75980797,4323.1,4323.0,10.83040407]
[1757329963439,127.98980797,4323.1,4323.0,10.83040407]
[1757329964592,127.98980797,4323.1,4323.0,4.664]
[1757329964918,129.21980797,4323.1,4323.0,4.664]
[1757329966226,130.44980797,4323.1,4323.0,4.664]
[1757329966590,129.99400797,4323.1,4323.0,4.664]
[1757329966805,130.44980797,4323.1,4323.0,4.664]
[1757329967427,129.99400797,4323.1,4323.0,4.664]
[1757329967631,131.67980797,4323.1,4323.0,4.664]
[1757329969042,131.67980797,4323.1,4323.0,4.7792]
[1757329969043,132.90980797,4323.1,4323.0,4.7792]
[1757329970331,134.13980797,4323.1,4323.0,4.7792]
[1757329970490,134.13980797,4323.1,4323.0,4.7782]
[1757329971162,134.13980797,4323.1,4323.0,0.9092]
[1757329971432,136.45296288,4323.1,4323.0,3.871]
[1757329971603,137.68296288,4323.1,4323.0,0.002]
[1757329971790,137.68296288,4323.1,4323.0,3.871]
[1757329972896,138.91296288,4323.1,4323.0,3.871]
[1757329974328,140.14296288,4323.1,4323.0,3.871]
[1757329976162,141.37296288,4323.1,4323.0,3.871]
[1757329977431,142.60216288,4323.1,4323.0,3.871]
[1757329978940,143.83216288,4323.1,4323.0,3.871]
[1757329980343,137.5064,4323.1,4323.0,4.1657]
[1757329980636,141.04955491,4323.1,4323.0,3.871]
[1757329980835,141.34275491,4323.1,4323.0,3.871]
[1757329981338,139.4981,4323.1,4323.0,3.871]
[1757329981547,144.07916288,4323.1,4323.0,3.871]
[1757329982050,145.30916288,4323.1,4323.0,3.871]
[1757329983145,144.84066288,4323.1,4323.0,3.871]
[1757329983352,146.07066288,4323.1,4323.0,3.871]
[1757329984145,145.77746288,4323.1,4323.0,3.871]
[1757329985245,147.00746288,4323.1,4323.0,3.871]
[1757329985549,144.69430797,4323.1,4323.0,3.871]
[1757329985705,142.4264,4323.1,4323.0,6.3925]
[1757329985909,142.4264,4323.1,4323.0,8.70570842]
[1757329986118,142.4264,4323.1,4323.0,11.70570842]
[1757329986541,142.4264,4323.1,4323.0,12.40024853]
[1757329986710,143.6564,4323.1,4323.0,12.40024853]
[1757329987954,144.8864,4323.1,4323.0,12.40024853]
[1757329989459,144.8864,4323.1,4323.0,8.65224011]
[1757329989751,146.1164,4323.1,4323.0,10.27090842]
[1757329990047,146.1164,4323.1,4323.0,11.35940842]
[1757329990540,146.1164,4323.1,4323.0,11.82090842]
[1757329991147,147.3464,4323.1,4323.0,11.82090842]
[1757329991504,147.3464,4323.1,4323.0,11.35940842]
[1757329992107,147.3464,4323.1,4323.0,11.82090842]
[1757329992607,148.5764,4323.1,4323.0,12.51548712]
[1757329993449,148.5764,4323.1,4323.0,12.05398712]
[1757329994329,149.8064,4323.1,4323.0,12.05398712]
[1757329994647,151.0365,4323.1,4323.0,5.4717787]
[1757329994812,153.77290797,4323.1,4323.0,4.7772]
[1757329995443,151.505,4323.1,4323.0,4.7772]
[1757329995649,152.735,4323.1,4323.0,4.7772]
[1757329996139,151.7981,4323.1,4323.0,10.94360407]
[1757329996345,151.3296,4323.1,4323.0,10.94360407]
[1757329996812,152.5596,4323.1,4323.0,10.94360407]
[1757329997231,153.0281,4323.1,4323.0,10.94360407]
[1757329997548,153.0281,4323.1,4323.0,4.7772]
[1757329998248,154.2581,4323.1,4323.0,4.7772]
[1757329998747,155.03594845,4323.1,4323.0,4.7772]
[1757329999412,154.56744845,4323.1,4323.0,4.7772]
[1757329999617,154.7264,4323.1,4323.0,12.21160407]
[1757329999817,154.7264,4323.1,4323.0,12.67310407]
[1757330000052,154.7264,4323.1,4323.0,6.5067]
[1757330000238,154.7264,4323.1,4323.0,14.52481249]
[1757330000614,154.7264,4323.1,4323.0,14.98631249]
[1757330001124,155.9564,4323.1,4323.0,14.98631249]
[1757330002570,157.1864,4323.1,4323.0,17.98631249]
[1757330002767,157.1856,4323.1,4323.0,17.98631249]
[1757330003871,158.4156,4323.1,4323.0,17.98631249]
[1757330004365,158.4156,4323.1,4323.0,16.55221249]
[1757330004580,158.4156,4323.1,4323.0,17.47491249]
[1757330005360,159.6456,4323.1,4323.0,17.47491249]
[1757330007247,160.8756,4323.1,4323.0,17.47491249]
[1757330007556,160.8756,4323.1,4323.0,17.93641249]
[1757330007919,160.8756,4323.1,4323.0,18.6309928]
[1757330008622,162.1056,4323.1,4323.0,18.6309928]
[1757330009063,162.1056,4323.1,4323.0,17.47491249]
[1757330009566,162.1056,4323.1,4323.0,18.16949279]
[1757330010258,163.3356,4323.1,4323.0,18.16949279]
[1757330010453,163.3356,4323.1,4323.0,19.28685119]
[1757330010657,163.3356,4323.1,4323.0,18.36415119]
[1757330010837,163.3356,4323.1,4323.0,17.37417089]
[1757330011554,164.5656,4323.1,4323.0,17.37417089]
[1757330011734,164.5656,4323.1,4323.0,17.66957089]
[1757330012842,165.7956,4323.1,4323.0,17.66957089]
[1757330014076,165.7956,4323.1,4323.0,17.66957089]
[1757330014476,167.0256,4323.1,4323.0,17.66957089]
[1757330015792,168.2556,4323.1,4323.0,17.66957089]
[1757330016190,168.2556,4323.1,4323.0,16.58217089]
[1757330016492,168.2556,4323.1,4323.0,17.37417089]
[1757330016805,168.5635,4323.1,4323.0,17.37417089]
[1757330016950,168.9934,4323.1,4323.0,10.09040842]
[1757330017292,170.2234,4323.1,4323.0,7.7772]
[1757330017652,170.2234,4323.1,4323.0,10.09040842]
[1757330017848,171.1175,4323.1,4323.0,7.7772]
[1757330018049,173.38540797,4323.1,4323.0,7.7772]
[1757330018697,174.61540797,4323.1,4323.0,7.7772]
[1757330019680,174.61540797,4323.1,4323.0,6.9852]
[1757330019896,174.61540797,4323.1,4323.0,7.7772]
[1757330020097,175.84540797,4323.1,4323.0,7.7772]
[1757330021969,177.07540797,4323.1,4323.0,7.7772]
[1757330022575,177.07540797,4323.1,4323.0,4.7772]
[1757330023464,178.30540797,4323.1,4323.0,4.7772]
[1757330025287,179.53540797,4323.1,4323.0,4.7772]
[1757330025474,181.84856288,4323.1,4323.0,4.7772]
[1757330025825,179.53540797,4323.1,4323.0,4.7772]
[1757330025974,181.84856288,4323.1,4323.0,3.87]
[1757330026167,181.84856288,4323.1,4323.0,0.002]
[1757330026366,181.84856288,4323.1,4323.0,3.869]
[1757330026596,183.07856288,4323.1,4323.0,3.869]
[1757330027509,183.07856288,4323.1,4323.0,0.002]
[1757330027715,183.07856288,4323.1,4323.0,3.869]
[1757330028085,184.30856288,4323.1,4323.0,3.869]
[1757330028409,184.30776288,4323.1,4323.0,3.869]
[1757330029297,185.53776288,4323.1,4323.0,3.869]
[1757330030875,185.53776288,4323.1,4323.0,0.002]
[1757330030876,190.63576288,4323.1,4323.0,0.002]
[1757330031308,191.33061507,4323.1,4323.0,0.002]
[1757330032315,192.56061507,4323.1,4323.0,0.002]
[1757330033167,195.56061507,4323.1,4323.0,0.002]
[1757330033672,189.92261507,4323.1,4323.0,0.002]
[1757330033937,193.79061507,4323.1,4323.0,0.002]
[1757330034068,193.09576288,4323.1,4323.0,0.002]
[1757330034273,187.90376288,4323.1,4323.0,0.002]
[1757330034472,186.06675491,4323.1,4323.0,0.002]
[1757330034730,186.06675491,4323.1,4323.0,3.87]
[1757330035208,187.29675491,4323.1,4323.0,3.87]
[1757330035889,188.23155491,4323.1,4323.0,3.87]
[1757330036517,189.46155491,4323.1,4323.0,3.87]
[1757330036819,191.72946288,4323.1,4323.0,3.87]
[1757330037616,190.79466288,4323.1,4323.0,3.87]
[1757330037800,192.02466288,4323.1,4323.0,3.87]
[1757330039109,194.18946288,4323.1,4323.0,3.87]
[1757330039978,193.25466288,4323.1,4323.0,3.87]
[1757330040615,194.48466288,4323.1,4323.0,3.87]
[1757330041183,193.74586288,4323.1,4323.0,3.87]
[1757330041378,191.47795491,4323.1,4323.0,4.163]
[1757330041584,191.76595491,4323.1,4323.0,3.87]
[1757330041793,193.13165491,4323.1,4323.0,0.002]
[1757330042011,194.36165491,4323.1,4323.0,0.002]
[1757330043388,195.59165491,4323.1,4323.0,0.002]
[1757330043783,201.72756288,4323.1,4323.0,0.002]
[1757330044996,202.95756288,4323.1,4323.0,0.002]
[1757330046383,204.18756288,4323.1,4323.0,0.002]
[1757330047823,205.41756288,4323.1,4323.0,0.002]
[1757330049492,206.64756288,4323.1,4323.0,0.002]
[1757330050811,207.87756288,4323.1,4323.0,0.002]
[1757330052119,209.10756288,4323.1,4323.0,0.002]
[1757330052721,212.10756288,4323.1,4323.0,0.002]
[1757330053032,212.20021627,4323.1,4323.0,0.002]
[1757330053752,213.42941627,4323.1,4323.0,0.002]
[1757330055228,214.65941627,4323.1,4323.0,0.002]
[1757330056654,2.31342247,4322.6,4322.5,0.002]
[1757330056860,6.88487801,4322.6,4322.5,0.002]
[1757330057055,8.53857801,4322.6,4322.5,0.002]
[1757330057870,9.76857801,4322.6,4322.5,0.002]
[1757330059366,9.63287801,4322.6,4322.5,0.002]
[1757330059723,9.34487801,4322.6,4322.5,0.002]
[1757330060573,9.34487801,4322.6,4322.5,0.295]
[1757330060726,10.57487801,4322.6,4322.5,0.295]
[1757330061781,10.57487801,4322.6,4322.5,1.6011]
[1757330062077,11.80487801,4322.6,4322.5,1.6011]
[1757330062231,11.92107801,4322.6,4322.5,1.6011]
[1757330062446,7.82173576,4322.6,4322.5,1.6011]
[1757330062970,7.82173576,4322.6,4322.5,1.1683]
[1757330063187,7.82173576,4322.6,4322.5,0.295]
[1757330063547,9.05173576,4322.6,4322.5,0.295]
[1757330064871,10.28173576,4322.6,4322.5,0.295]
[1757330065075,11.92804438,4322.6,4322.5,0.295]
[1757330066248,13.15804438,4322.6,4322.5,0.295]
[1757330067260,17.02504438,4322.6,4322.5,0.295]
[1757330067717,9.19831329,4322.6,4322.5,0.295]
[1757330067859,10.31311329,4322.6,4322.5,2.3757]
[1757330068364,12.62653576,4322.6,4322.5,2.3757]
[1757330068972,10.31311329,4322.6,4322.5,2.3757]
[1757330069172,12.62653576,4322.6,4322.5,2.3757]
[1757330069354,13.85653576,4322.6,4322.5,2.3757]
[1757330070804,15.08653576,4322.6,4322.5,2.3757]
[1757330072397,16.31653576,4322.6,4322.5,2.3757]
[1757330074102,17.54653576,4322.6,4322.5,2.3757]
[1757330075307,18.77653576,4322.6,4322.5,2.3757]
[1757330076527,16.46311329,4322.6,4322.5,2.3757]
[1757330076729,17.69311329,4322.6,4322.5,2.3757]
[1757330076944,17.69311329,4322.6,4322.5,8.10803205]
[1757330077237,17.69311329,4322.6,4322.5,12.41223205]
[1757330077799,17.221,4322.6,4322.5,12.52743205]
[1757330078199,18.451,4322.6,4322.5,12.52743205]
[1757330079114,18.4502,4322.6,4322.5,12.52743205]
[1757330079619,19.6802,4322.6,4322.5,12.52743205]
[1757330080592,19.6802,4322.6,4322.5,14.84090804]
[1757330080806,19.6802,4322.6,4322.5,12.52743205]
[1757330081018,20.9102,4322.6,4322.5,12.52743205]
[1757330082585,22.1402,4322.6,4322.5,12.52743205]
[1757330084225,23.3702,4322.6,4322.5,12.52743205]
[1757330084716,23.3702,4322.6,4322.5,12.09023205]
[1757330085023,23.3702,4322.6,4322.5,11.23873205]
[1757330085382,24.6002,4322.6,4322.5,12.09023205]
[1757330085806,24.6002,4322.6,4322.5,12.52743205]
[1757330086718,25.8302,4322.6,4322.5,12.52743205]
[1757330088321,27.0602,4322.6,4322.5,12.52743205]
[1757330089504,28.2902,4322.6,4322.5,12.52743205]
[1757330091430,29.5202,4322.6,4322.5,12.09023205]
[1757330091631,29.5202,4322.6,4322.5,12.52743205]
[1757330092410,29.5202,4322.6,4322.5,12.09023205]
[1757330092619,29.5202,4322.6,4322.5,11.23873205]
[1757330092820,30.7502,4322.6,4322.5,11.23873205]
[1757330094395,31.9802,4322.6,4322.5,11.23873205]
[1757330096207,33.2102,4322.6,4322.5,11.23873205]
[1757330097702,34.4402,4322.6,4322.5,11.23873205]
[1757330099008,35.6702,4322.6,4322.5,11.23873205]
[1757330100413,36.9002,4322.6,4322.5,11.23873205]
[1757330100840,36.9002,4322.6,4322.5,13.55220804]
[1757330101019,36.9002,4322.6,4322.5,13.01573205]
[1757330101742,38.1302,4322.6,4322.5,13.01573205]
[1757330102257,33.31041925,4322.6,4322.5,19.65800804]
[1757330102541,33.31041925,4322.6,4322.5,20.35259156]
[1757330102758,33.31041925,4322.6,4322.5,7.57058352]
[1757330102915,34.88871925,4322.6,4322.5,5.644]
[1757330103326,36.11871925,4322.6,4322.5,6.436]
[1757330104744,37.34791925,4322.6,4322.5,6.436]
[1757330106241,38.57791925,4322.6,4322.5,6.436]
[1757330106744,38.57791925,4322.6,4322.5,2.571]
[1757330106948,38.57791925,4322.6,4322.5,6.436]
[1757330107950,38.97201925,4322.6,4322.5,6.436]
[1757330108808,38.22961925,4322.6,4322.5,6.436]
[1757330109010,38.22961925,4322.6,4322.5,12.03957599]
[1757330109342,39.45961925,4322.6,4322.5,13.36837599]
[1757330110611,40.68961925,4322.6,4322.5,13.36837599]
[1757330111948,41.91961925,4322.6,4322.5,13.36837599]
[1757330113058,41.91961925,4322.6,4322.5,13.48357599]
[1757330113364,43.14961925,4322.6,4322.5,14.17814986]
[1757330114133,43.14961925,4322.6,4322.5,13.74614986]
[1757330115020,44.37961925,4322.6,4322.5,13.74614986]
[1757330115765,44.37961925,4322.6,4322.5,13.74514986]
[1757330116660,45.60961925,4322.6,4322.5,13.74514986]
[1757330117750,45.60961925,4322.6,4322.5,12.84834986]
[1757330117947,46.83961925,4322.6,4322.5,12.84834986]
[1757330118147,48.41791925,4322.6,4322.5,0.69657387]
[1757330118347,48.41791925,4322.6,4322.5,3.866]
[1757330118549,48.41791925,4322.6,4322.5,9.17947599]
[1757330118550,46.83961925,4322.6,4322.5,9.17947599]
[1757330118854,46.83961925,4322.6,4322.5,16.14100804]
[1757330118855,47.12611925,4322.6,4322.5,16.14100804]
[1757330119059,46.83961925,4322.6,4322.5,16.14100804]
[1757330119556,48.35611925,4322.6,4322.5,7.658]
[1757330119719,48.81201925,4322.6,4322.5,4.658]
[1757330119923,48.81201925,4322.6,4322.5,0.794]
[1757330120152,49.64791925,4322.6,4322.5,4.658]
[1757330120358,49.64791925,4322.6,4322.5,7.658]
[1757330120758,50.87791925,4322.6,4322.5,7.658]
[1757330121940,50.87791925,4322.6,4322.5,3.794]
[1757330122179,52.10791925,4322.6,4322.5,7.658]
[1757330123162,52.10791925,4322.6,4322.5,7.9481]
[1757330123163,50.52961925,4322.6,4322.5,7.9481]
[1757330123530,50.52961925,4322.6,4322.5,10.26157599]
[1757330123731,51.75961925,4322.6,4322.5,10.26157599]
[1757330124746,52.06301925,4322.6,4322.5,7.658]
[1757330124964,53.37351925,4322.6,4322.5,7.658]
[1757330125280,54.60351925,4322.6,4322.5,7.658]
[1757330125886,54.60351925,4322.6,4322.5,9.97147599]
[1757330126039,54.60351925,4322.6,4322.5,7.658]
[1757330126457,55.83351925,4322.6,4322.5,3.794]
[1757330126867,55.83351925,4322.6,4322.5,7.658]
[1757330128188,57.06351925,4322.6,4322.5,7.7732]
[1757330129583,57.06351925,4322.6,4322.5,0.002]
[1757330129584,62.39135188,4322.6,4322.5,0.002]
[1757330129741,62.39135188,4322.6,4322.5,3.866]
[1757330129942,62.39055188,4322.6,4322.5,0.002]
[1757330130554,62.39055188,4322.6,4322.5,3.866]
[1757330130767,63.62055188,4322.6,4322.5,3.866]
[1757330132346,64.85055188,4322.6,4322.5,3.866]
[1757330132968,64.85055188,4322.6,4322.5,0.002]
[1757330133894,69.94455188,4322.6,4322.5,0.002]
[1757330135396,71.17455188,4322.6,4322.5,0.002]
[1757330136684,75.40455188,4322.6,4322.5,0.002]
[1757330137974,76.63455188,4322.6,4322.5,0.002]
[1757330139661,77.86455188,4322.6,4322.5,0.002]
[1757330140987,79.09455188,4322.6,4322.5,0.002]
[1757330141196,79.18722073,4322.6,4322.5,0.002]
[1757330142286,80.41722073,4322.6,4322.5,0.002]
[1757330143739,76.55322073,4322.6,4322.5,0.002]
[1757330143878,81.64822073,4322.6,4322.5,0.002]
[1757330144404,77.78322073,4322.6,4322.5,0.002]
[1757330144698,75.66851057,4322.6,4322.5,0.002]
[1757330144900,76.03264172,4322.6,4322.5,0.002]
[1757330145065,76.88634172,4322.6,4322.5,0.002]
[1757330145264,78.11634172,4322.6,4322.5,0.002]
[1757330145464,76.80584172,4322.6,4322.5,0.002]
[1757330145864,79.07374969,4322.6,4322.5,0.002]
[1757330146066,75.20874969,4322.6,4322.5,0.002]
[1757330146313,79.07374969,4322.6,4322.5,0.002]
[1757330146767,80.30374969,4322.6,4322.5,0.002]
[1757330147309,81.61424969,4322.6,4322.5,0.002]
[1757330147818,80.76054969,4322.6,4322.5,0.002]
[1757330148313,82.84424969,4322.6,4322.5,0.002]
[1757330149599,84.07424969,4322.6,4322.5,0.002]
[1757330151094,85.30424969,4322.6,4322.5,0.002]
[1757330152478,86.53424969,4322.6,4322.5,0.002]
[1757330152679,89.53424969,4322.6,4322.5,0.002]
[1757330153993,90.76424969,4322.6,4322.5,0.002]
[1757330154185,2.31358304,4322.3,4322.2,1e-08]
[1757330154384,6.17858304,4322.3,4322.2,1e-08]
[1757330154718,7.81228304,4322.3,4322.2,1e-08]
[1757330155287,9.49901918,4322.3,4322.2,1e-08]
[1757330155488,9.49821918,4322.3,4322.2,1e-08]
[1757330155719,11.76612715,4322.3,4322.2,1e-08]
[1757330156618,12.99612715,4322.3,4322.2,1e-08]
[1757330156824,13.69117091,4322.3,4322.2,1e-08]
[1757330158116,14.92117091,4322.3,4322.2,1e-08]
[1757330159513,16.15117091,4322.3,4322.2,1e-08]
[1757330160688,14.51747091,4322.3,4322.2,1e-08]
[1757330160888,15.74747091,4322.3,4322.2,0.31170001]
[1757330161646,15.74747091,4322.3,4322.2,1.16150001]
[1757330161789,8.91951918,4322.3,4322.2,0.31170001]
[1757330161990,12.78451918,4322.3,4322.2,0.31170001]
[1757330162184,14.01451918,4322.3,4322.2,0.31170001]
[1757330163525,15.24451918,4322.3,4322.2,0.31170001]
[1757330164908,16.47451918,4322.3,4322.2,0.31170001]
[1757330165434,12.60951918,4322.3,4322.2,0.31170001]
[1757330165591,16.47451918,4322.3,4322.2,0.31170001]
[1757330165790,19.52472715,4322.3,4322.2,1e-08]
[1757330166354,20.29799101,4322.3,4322.2,1e-08]
[1757330166711,19.83079101,4322.3,4322.2,1e-08]
[1757330166908,20.29799101,4322.3,4322.2,1e-08]
[1757330167621,19.83079101,4322.3,4322.2,1e-08]
[1757330167806,21.06079101,4322.3,4322.2,1e-08]
[1757330168004,21.52799101,4322.3,4322.2,1e-08]
[1757330169113,22.29079101,4322.3,4322.2,1e-08]
[1757330169313,15.84278304,4322.3,4322.2,0.31170001]
[1757330169548,19.70778304,4322.3,4322.2,1.62430001]
[1757330169765,19.70778304,4322.3,4322.2,1.16150001]
[1757330170463,19.70778304,4322.3,4322.2,1.62430001]
[1757330170772,20.93778304,4322.3,4322.2,1.62430001]
[1757330172074,22.16778304,4322.3,4322.2,1.62430001]
[1757330172773,22.16778304,4322.3,4322.2,1.16150001]
[1757330173068,22.16778304,4322.3,4322.2,0.31170001]
[1757330173619,18.30358304,4322.3,4322.2,5.48930001]
[1757330173974,19.53358304,4322.3,4322.2,5.48930001]
[1757330175161,20.76358304,4322.3,4322.2,5.48930001]
[1757330176645,21.99358304,4322.3,4322.2,5.48930001]
[1757330178337,23.22358304,4322.3,4322.2,5.48930001]
[1757330178541,20.91,4322.3,4322.2,6.28130001]
[1757330179868,22.14,4322.3,4322.2,6.28130001]
[1757330180835,22.1392,4322.3,4322.2,6.28130001]
[1757330181332,23.3692,4322.3,4322.2,6.28130001]
[1757330181738,23.3702,4322.3,4322.2,8.59493658]
[1757330181937,23.3702,4322.3,4322.2,11.59493658]
[1757330182760,23.3702,4322.3,4322.2,11.59493658]
[1757330182954,24.6002,4322.3,4322.2,11.59493658]
[1757330184244,25.8302,4322.3,4322.2,11.59493658]
[1757330185773,27.0602,4322.3,4322.2,11.59493658]
[1757330186839,77.58881925,4322.6,4322.2,11.71013658]
[1757330187165,72.81723631,4322.6,4322.5,13.39669071]
[1757330187366,72.81723631,4322.6,4322.5,12.17697599]
[1757330187552,72.81723631,4322.6,4322.5,20.80859071]
[1757330188376,74.04723631,4322.6,4322.5,20.80859071]
[1757330189800,74.81734383,4322.6,4322.5,20.80859071]
[1757330189952,50.78092626,4322.6,4322.5,20.80859071]
[1757330190973,50.78092626,4322.6,4322.5,20.80759071]
[1757330191181,45.58455193,4322.6,4322.5,18.49411472]
[1757330192075,39.1581776,4322.6,4322.5,18.49411472]
[1757330192513,40.3881776,4322.6,4322.5,18.49411472]
[1757330193358,33.96180327,4322.6,4322.5,18.49411472]
[1757330193771,35.19180327,4322.6,4322.5,18.49411472]
[1757330194381,35.19180327,4322.6,4322.5,17.36753532]
[1757330194791,30.37202252,4322.6,4322.5,23.53217064]
[1757330194970,30.93115001,4322.6,4322.5,25.73737451]
[1757330195570,26.11136926,4322.6,4322.5,25.73737451]
[1757330196708,22.52158851,4322.6,4322.5,19.57273919]
[1757330197294,22.52158851,4322.6,4322.5,25.73737451]
[1757330197607,17.70180776,4322.6,4322.5,25.73737451]
[1757330198215,18.93180776,4322.6,4322.5,25.73737451]
[1757330198576,14.11202701,4322.6,4322.5,25.73737451]
[1757330198778,14.11202701,4322.6,4322.5,19.57273919]
[1757330199076,14.11202701,4322.6,4322.5,25.73737451]
[1757330199495,15.34202701,4322.6,4322.5,25.73737451]
[1757330199700,10.52224626,4322.6,4322.5,25.73737451]
[1757330200244,10.52224626,4322.6,4322.5,19.57273919]
[1757330200777,10.52224626,4322.6,4322.5,15.70973919]
[1757330201019,11.75224626,4322.6,4322.5,19.57173919]
[1757330201403,11.75224626,4322.6,4322.5,19.57373919]
[1757330201618,11.75324626,4322.6,4322.5,19.57373919]
[1757330202304,12.98324626,4322.6,4322.5,19.57373919]
[1757330202898,12.98324626,4322.6,4322.5,13.40910387]
[1757330204422,14.21324626,4322.6,4322.5,13.40910387]
[1757330205745,15.44324626,4322.6,4322.5,13.40910387]
[1757330206108,15.44324626,4322.6,4322.5,17.61910387]
[1757330206318,15.44244626,4322.6,4322.5,17.61910387]
[1757330207424,16.67244626,4322.6,4322.5,17.61910387]
[1757330208714,17.90244626,4322.6,4322.5,17.61910387]
[1757330210142,19.13244626,4322.6,4322.5,19.93257986]
[1757330211269,19.13244626,4322.6,4322.5,15.72257986]
[1757330211432,20.36244626,4322.6,4322.5,15.72257986]
[1757330212668,20.36244626,4322.6,4322.5,15.26957986]
[1757330212872,21.59244626,4322.6,4322.5,15.26957986]
[1757330213477,21.31475581,4322.6,4322.5,15.71077986]
[1757330214263,22.54475581,4322.6,4322.5,15.71077986]
[1757330214934,22.54475581,4322.6,4322.5,15.26857986]
[1757330215365,22.54475581,4322.6,4322.5,16.44172139]
[1757330215558,23.77475581,4322.6,4322.5,16.44172139]
[1757330215762,23.77475581,4322.6,4322.5,12.58072139]
[1757330215964,23.77475581,4322.6,4322.5,16.44172139]
[1757330216444,23.77475581,4322.6,4322.5,18.59117986]
[1757330217270,25.00475581,4322.6,4322.5,18.59117986]
[1757330218531,26.23475581,4322.6,4322.5,18.59117986]
[1757330218934,26.23475581,4322.6,4322.5,17.20117986]
[1757330219141,26.23475581,4322.6,4322.5,12.99117986]
[1757330219683,26.23475581,4322.6,4322.5,14.38117986]
[1757330219855,27.46475581,4322.6,4322.5,12.99117986]
[1757330221647,28.69475581,4322.6,4322.5,12.99117986]
[1757330222183,28.69475581,4322.6,4322.5,18.54417986]
[1757330223176,29.92475581,4322.6,4322.5,18.54417986]
[1757330223346,29.6470581,4322.6,4322.5,18.54417986]
[1757330224596,30.8770581,4322.6,4322.5,18.54417986]
[1757330226180,32.1070581,4322.6,4322.5,18.54417986]
[1757330227446,33.3370581,4322.6,4322.5,18.54417986]
[1757330227645,33.3370581,4322.6,4322.5,18.54317986]
[1757330228182,33.3370581,4322.6,4322.5,21.427938]
[1757330228558,33.3370581,4322.6,4322.5,18.54317986]
[1757330228856,34.5670581,4322.6,4322.5,18.54317986]
[1757330230079,34.5670581,4322.6,4322.5,22.75317986]
[1757330230383,35.7970581,4322.6,4322.5,22.75317986]
[1757330230903,37.1283581,4322.6,4322.5,13.57687986]
[1757330231061,37.1283581,4322.6,4322.5,5.74563852]
[1757330231062,39.87076607,4322.6,4322.5,5.74563852]
[1757330231406,39.87076607,4322.6,4322.5,4.93983633]
[1757330231695,37.8049581,4322.6,4322.5,10.25331232]
[1757330231980,37.8049581,4322.6,4322.5,11.04531232]
[1757330232979,39.0349581,4322.6,4322.5,11.04531232]
[1757330234360,40.2649581,4322.6,4322.5,11.04531232]
[1757330234561,39.7904581,4322.6,4322.5,11.04531232]
[1757330236165,41.0204581,4322.6,4322.5,11.04531232]
[1757330237986,42.2504581,4322.6,4322.5,11.04731232]
[1757330238155,42.2504581,4322.6,4322.5,16.60131232]
[1757330238356,42.7201581,4322.6,4322.5,16.60131232]
[1757330239253,43.9501581,4322.6,4322.5,16.60131232]
[1757330240695,45.1801581,4322.6,4322.5,16.60131232]
[1757330240990,45.1801581,4322.6,4322.5,16.71651232]
[1757330241289,45.1801581,4322.6,4322.5,15.80931232]